bitfinex/quotes_BTCUSD_20240826
["timestamp","ask_amount","ask_price","bid_price","bid_amount"]
[1724656046708,0.787549,63701.0,63700.0,0.002]
[1724656046919,0.156997,63696.0,63692.0,0.39091256]
[1724656047129,0.313961,63703.0,63692.0,0.39091256]
[1724656047331,0.156988,63699.0,63692.0,0.39091256]
[1724656047552,0.156991,63698.0,63692.0,0.39091256]
[1724656047786,0.156985,63701.0,63694.0,0.156999]
[1724656047998,0.156986,63700.0,63693.0,0.22916394]
[1724656048630,0.5108,63709.0,63693.0,0.07216294]
[1724656048844,0.013,63698.0,63696.0,0.156995]
[1724656049070,0.013,63698.0,63697.0,0.50259005]
[1724656049284,0.00667189,63698.0,63697.0,0.34559705]
[1724656049498,0.00667189,63698.0,63697.0,0.50259005]
[1724656049899,0.00667189,63698.0,63697.0,1.00977605]
[1724656050118,0.008,63700.0,63697.0,0.22369705]
[1724656050324,0.008,63700.0,63698.0,0.3760855]
[1724656050534,0.017,63700.0,63698.0,0.3760855]
[1724656050954,0.008,63700.0,63698.0,0.5330755]
[1724656051156,0.008,63700.0,63698.0,0.3760855]
[1724656051377,0.156982,63702.0,63698.0,0.3151]
[1724656051378,0.313967,63701.0,63698.0,0.3151]
[1724656051606,0.156988,63699.0,63698.0,0.3151]
[1724656051817,0.313967,63701.0,63697.0,0.002825]
[1724656051818,0.471971,63698.0,63697.0,0.002825]
[1724656052032,1.106552,63698.0,63697.0,0.000825]
[1724656053083,1.425533,63698.0,63697.0,0.000825]
[1724656053487,1.420533,63698.0,63697.0,0.000825]
[1724656054566,1.426533,63698.0,63697.0,0.000825]
[1724656054985,1.58271101,63698.0,63697.0,0.000825]
[1724656055633,1.58871101,63698.0,63697.0,0.000825]
[1724656055848,1.58271101,63698.0,63697.0,0.000825]
[1724656056284,1.58671101,63698.0,63697.0,0.000825]
[1724656061182,1.77901101,63698.0,63697.0,0.000825]
[1724656062365,1.27273001,63698.0,63697.0,0.000825]
[1724656063349,1.58671101,63698.0,63697.0,0.000825]
[1724656063884,1.58761962,63698.0,63697.0,0.000825]
[1724656064135,1.26601962,63698.0,63697.0,0.000825]
[1724656064910,1.25101962,63698.0,63697.0,0.000825]
[1724656065319,1.79701962,63698.0,63697.0,0.000825]
[1724656065944,1.25101962,63698.0,63697.0,0.000825]
[1724656066148,0.93703862,63698.0,63697.0,0.000825]
[1724656066960,0.78086061,63698.0,63697.0,0.000825]
[1724656067437,0.46687961,63698.0,63697.0,0.000825]
[1724656067790,0.46687961,63698.0,63697.0,0.06188876]
[1724656067992,1.79311962,63698.0,63697.0,0.000825]
[1724656069258,1.78711962,63698.0,63697.0,0.000825]
[1724656069477,1.79293067,63698.0,63697.0,0.000825]
[1724656069892,1.80193067,63698.0,63697.0,0.000825]
[1724656070088,1.79193067,63698.0,63697.0,0.000825]
[1724656070287,1.80193067,63698.0,63697.0,0.000825]
[1724656079465,2.27404335,63698.0,63697.0,0.000825]
[1724656079703,2.46613777,63698.0,63697.0,0.000825]
[1724656079916,2.46613777,63698.0,63692.0,0.07581256]
[1724656079917,0.002,63693.0,63692.0,0.07581256]
[1724656080132,0.002,63693.0,63691.0,0.0066918]
[1724656080133,0.002,63683.0,63678.0,0.09988352]
[1724656080339,1.450362,63679.0,63678.0,0.09988352]
[1724656080553,0.58242197,63689.0,63679.0,0.1864]
[1724656080771,0.471105,63680.0,63679.0,0.1864]
[1724656080974,0.471112,63679.0,63678.0,0.11278206]
[1724656081151,0.785187,63679.0,63678.0,0.09988352]
[1724656081381,0.471112,63679.0,63678.0,0.09988352]
[1724656081586,0.40905776,63693.0,63679.0,0.3552]
[1724656081587,0.3454,63692.0,63679.0,0.3552]
[1724656081796,0.06978296,63697.0,63680.0,0.3548]
[1724656081797,0.157019,63687.0,63680.0,0.3548]
[1724656082029,0.24394312,63698.0,63681.0,0.15617801]
[1724656082030,0.01290861,63698.0,63681.0,0.15617801]
[1724656082228,0.156994,63697.0,63690.0,0.511808]
[1724656082437,0.15789961,63698.0,63690.0,0.31402]
[1724656082638,0.15789961,63698.0,63693.0,0.3548]
[1724656082847,0.00090861,63698.0,63697.0,0.156993]
[1724656083062,0.00090861,63698.0,63697.0,1.139765]
[1724656083678,0.00090861,63698.0,63697.0,1.29594301]
[1724656083885,0.00090861,63698.0,63697.0,1.50094301]
[1724656084095,0.00990861,63698.0,63697.0,1.90212966]
[1724656084268,0.00090861,63698.0,63697.0,1.90212966]
[1724656084707,0.00190861,63698.0,63697.0,1.90212966]
[1724656084915,0.01090861,63698.0,63697.0,1.90975537]
[1724656085117,0.78260699,63726.0,63715.0,0.3524]
[1724656085118,0.46876099,63726.0,63715.0,0.3524]
[1724656085325,0.156928,63724.0,63717.0,0.3524]
[1724656085539,0.156917,63728.0,63720.0,0.3524]
[1724656085744,0.156917,63728.0,63721.0,0.156932]
[1724656085745,0.156916,63728.0,63721.0,0.156932]
[1724656085919,0.61559047,63738.0,63719.0,0.512177]
[1724656085920,0.156903,63734.0,63726.0,0.156921]
[1724656086173,0.313792,63737.0,63723.0,0.1983]
[1724656086382,0.00090751,63738.0,63727.0,0.1593162]
[1724656086592,0.156895,63737.0,63728.0,0.3754]
[1724656086803,0.156895,63737.0,63729.0,0.00313785]
[1724656087014,0.156898,63736.0,63730.0,0.5421]
[1724656087223,0.014,63734.0,63730.0,0.5421]
[1724656087431,0.170902,63734.0,63731.0,0.0721278]
[1724656087644,0.156902,63734.0,63731.0,0.0721278]
[1724656087848,0.313796,63736.0,63731.0,0.0721278]
[1724656088050,0.156907,63732.0,63731.0,0.0721278]
[1724656088260,0.313801,63735.0,63731.0,0.0721278]
[1724656088261,0.313799,63735.0,63731.0,0.0721278]
[1724656088466,0.313799,63735.0,63732.0,0.06142278]
[1724656088638,0.156904,63733.0,63732.0,0.06142278]
[1724656088880,0.004,63734.0,63732.0,0.21760079]
[1724656089078,0.00090751,63738.0,63724.0,0.031402]
[1724656089079,0.00090751,63738.0,63733.0,0.36467801]
[1724656089287,0.00090751,63738.0,63734.0,0.3538]
[1724656089493,0.01,63735.0,63734.0,0.3538]
[1724656090485,0.01,63735.0,63734.0,0.3548]
[1724656090908,0.00090751,63738.0,63734.0,0.3538]
[1724656091109,0.00090751,63738.0,63735.0,0.0853117]
[1724656091934,0.15780051,63738.0,63735.0,0.0853117]
[1724656092404,0.00090751,63738.0,63735.0,0.0853117]
[1724656092825,0.00690751,63738.0,63735.0,0.0863117]
[1724656093241,0.01290751,63738.0,63735.0,0.0863117]
[1724656093443,0.01290751,63738.0,63736.0,0.04847749]
[1724656094129,0.00690751,63738.0,63736.0,0.04847749]
[1724656094340,0.01490751,63738.0,63736.0,0.04847749]
[1724656094536,0.00890751,63738.0,63736.0,0.04847749]
[1724656094944,0.00090751,63738.0,63736.0,0.04847749]
[1724656095232,0.00090751,63738.0,63737.0,0.031402]
[1724656095858,0.156899,63735.0,63734.0,0.3538]
[1724656096060,0.156899,63735.0,63714.0,0.001]
[1724656096061,0.156895,63737.0,63731.0,0.156907]
[1724656096265,0.01090751,63738.0,63729.0,0.520512]
[1724656096474,0.01090751,63738.0,63730.0,0.156911]
[1724656096675,0.156898,63736.0,63731.0,0.1025841]
[1724656097073,0.156904,63734.0,63731.0,0.1025841]
[1724656097492,0.156907,63732.0,63731.0,0.1025841]
[1724656097697,0.313797,63736.0,63731.0,0.1025841]
[1724656097698,0.156903,63734.0,63731.0,0.1025841]
[1724656098229,0.313797,63736.0,63731.0,0.1025841]
[1724656098230,0.313797,63736.0,63731.0,0.1035841]
[1724656098458,0.00090751,63738.0,63732.0,0.06260709]
[1724656098661,0.156904,63733.0,63732.0,0.06260709]
[1724656098863,0.156907,63732.0,63731.0,0.001]
[1724656099067,0.470721,63732.0,63731.0,0.001]
[1724656099504,0.156907,63732.0,63731.0,0.001]
[1724656100742,0.470721,63732.0,63731.0,0.001]
[1724656100930,0.15691,63731.0,63725.0,0.156923]
[1724656101073,0.156906,63733.0,63726.0,0.2575182]
[1724656101278,0.156906,63733.0,63732.0,0.002]
[1724656101503,0.156906,63733.0,63727.0,0.156918]
[1724656101699,0.156906,63733.0,63726.0,0.1005982]
[1724656101924,0.00090861,63735.0,63726.0,0.1005982]
[1724656101925,0.159907,63732.0,63727.0,0.156918]
[1724656102127,0.159907,63732.0,63727.0,0.22151099]
[1724656102325,0.156908,63732.0,63727.0,0.22151199]
[1724656103108,0.002,63733.0,63727.0,0.22151199]
[1724656103544,0.158906,63733.0,63727.0,0.22151199]
[1724656103809,0.156915,63729.0,63727.0,0.06459299]
[1724656104008,0.156913,63730.0,63727.0,0.06459299]
[1724656104215,0.156924,63725.0,63724.0,0.347]
[1724656104402,0.156924,63725.0,63713.0,0.32045351]
[1724656104403,0.00392285,63729.0,63717.0,0.5428]
[1724656104611,0.156951,63714.0,63713.0,0.1859]
[1724656104801,0.156947,63716.0,63713.0,0.1859]
[1724656104960,0.156951,63714.0,63713.0,0.1859]
[1724656105181,0.156953,63713.0,63712.0,0.3569]
[1724656105410,0.313894,63716.0,63709.0,0.156963]
[1724656105629,0.156951,63715.0,63710.0,0.0721963]
[1724656106044,0.1866,63719.0,63713.0,0.002]
[1724656106230,0.1864,63725.0,63713.0,0.002]
[1724656106436,0.156944,63717.0,63710.0,0.3861133]
[1724656106671,0.156944,63717.0,63711.0,0.156956]
[1724656106880,0.156944,63717.0,63712.0,0.09299489]
[1724656107094,0.156949,63715.0,63712.0,0.09299489]
[1724656107532,0.156952,63714.0,63708.0,0.565]
[1724656107683,0.156952,63714.0,63708.0,0.721965]
[1724656107893,0.160949,63715.0,63708.0,0.565]
[1724656108089,0.160949,63715.0,63709.0,0.156962]
[1724656108288,0.156949,63715.0,63710.0,0.1035894]
[1724656108501,0.159949,63715.0,63710.0,0.1035894]
[1724656108707,0.160949,63715.0,63710.0,0.1035894]
[1724656109084,0.003,63715.0,63711.0,0.313917]
[1724656109468,0.004,63715.0,63711.0,0.156957]
[1724656109670,0.007,63715.0,63712.0,0.06160179]
[1724656109884,0.007,63715.0,63714.0,0.156951]
[1724656110861,0.003,63715.0,63713.0,0.3647]
[1724656111058,0.156942,63718.0,63713.0,0.3647]
[1724656111237,0.004,63715.0,63713.0,0.3647]
[1724656111442,0.004,63715.0,63713.0,0.1035894]
[1724656111640,0.156951,63714.0,63713.0,0.1035894]
[1724656112413,0.004,63715.0,63713.0,0.1035894]
[1724656112588,0.15695,63715.0,63713.0,0.1035894]
[1724656113581,0.156948,63716.0,63713.0,0.1035894]
[1724656113787,0.003,63714.0,63713.0,0.1035894]
[1724656114196,0.005,63714.0,63713.0,0.1035894]
[1724656114597,0.003,63714.0,63713.0,0.1035894]
[1724656114968,0.160948,63716.0,63713.0,0.1035894]
[1724656115168,0.156948,63716.0,63713.0,0.1035894]
[1724656115363,0.004,63715.0,63714.0,0.02605474]
[1724656115764,0.156948,63716.0,63714.0,0.02605474]
[1724656116203,0.009,63716.0,63714.0,0.02105474]
[1724656116613,0.004,63716.0,63714.0,0.02105474]
[1724656116988,0.009,63716.0,63714.0,0.02105474]
[1724656117185,0.009,63716.0,63715.0,0.03554705]
[1724656117700,0.005,63716.0,63715.0,0.03554705]
[1724656118372,0.156945,63717.0,63715.0,0.03554705]
[1724656118774,0.009,63716.0,63715.0,0.03554705]
[1724656119346,0.004,63716.0,63715.0,0.03554705]
[1724656119990,0.004,63716.0,63710.0,0.15696]
[1724656120199,0.15695,63715.0,63710.0,0.15696]
[1724656120374,0.156948,63716.0,63711.0,0.156957]
[1724656120773,0.156949,63715.0,63708.0,0.5619]
[1724656121012,0.156949,63715.0,63692.0,0.816309]
[1724656121013,0.50380167,63714.0,63692.0,0.816309]
[1724656121222,0.50380167,63714.0,63692.0,0.3216]
[1724656121223,0.1836,63702.0,63692.0,0.3216]
[1724656121427,0.470964,63699.0,63692.0,0.3216]
[1724656122701,1.626216,63699.0,63680.0,0.157033]
[1724656122894,1.48241801,63699.0,63676.0,0.314086]
[1724656123022,1.79639401,63699.0,63682.0,0.3534]
[1724656123643,1.78939401,63699.0,63682.0,0.3534]
[1724656123854,1.79839401,63699.0,63682.0,0.3534]
[1724656124056,0.172988,63699.0,63685.0,0.1937]
[1724656124258,0.172988,63699.0,63693.0,0.3534]
[1724656124489,0.016,63699.0,63697.0,0.156993]
[1724656124714,0.479964,63699.0,63698.0,0.0519479]
[1724656124906,0.174988,63699.0,63698.0,0.000826]
[1724656125079,0.009,63699.0,63698.0,0.000826]
[1724656125280,0.156981,63702.0,63698.0,0.000826]
[1724656125482,0.156983,63701.0,63698.0,0.000826]
[1724656125682,0.017,63699.0,63698.0,0.000826]
[1724656125884,0.008,63699.0,63698.0,0.0166085]
[1724656126093,1.29824,63699.0,63698.0,0.000826]
[1724656126296,1.30924,63699.0,63698.0,0.000826]
[1724656126492,1.615216,63699.0,63698.0,0.000826]
[1724656127102,2.39834601,63699.0,63698.0,0.000826]
[1724656128142,2.08737001,63699.0,63698.0,0.000826]
[1724656128345,2.08437001,63699.0,63698.0,0.000826]
[1724656128494,2.09137001,63699.0,63698.0,0.000826]
[1724656128692,2.10537001,63699.0,63698.0,0.000826]
[1724656128919,2.09637001,63699.0,63698.0,0.000826]
[1724656129317,2.11037001,63699.0,63698.0,0.000826]
[1724656129517,1.626216,63699.0,63698.0,0.000826]
[1724656130183,1.640216,63699.0,63698.0,0.000826]
[1724656131637,1.626116,63699.0,63698.0,0.000826]
[1724656131839,1.612116,63699.0,63698.0,0.000826]
[1724656132040,1.626116,63699.0,63698.0,0.000826]
[1724656132558,1.612116,63699.0,63698.0,0.000826]
[1724656132739,1.626116,63699.0,63698.0,0.000826]
[1724656132948,1.640116,63699.0,63698.0,0.000826]
[1724656134854,0.81284,63699.0,63698.0,0.000826]
[1724656135127,1.126816,63699.0,63698.0,0.000826]
[1724656135600,1.12772351,63699.0,63698.0,0.000826]
[1724656136080,1.11372351,63699.0,63698.0,0.000826]
[1724656136464,1.11272351,63699.0,63698.0,0.000826]
[1724656136675,0.79874751,63699.0,63698.0,0.000826]
[1724656136877,0.01390751,63699.0,63698.0,0.196626]
[1724656137081,0.01390751,63699.0,63698.0,0.2162886]
[1724656137285,0.01390751,63699.0,63698.0,0.5690886]
[1724656137574,0.17089551,63699.0,63698.0,0.5690886]
[1724656137974,0.18489551,63699.0,63698.0,0.5690886]
[1724656138132,0.17189551,63699.0,63698.0,0.5690886]
[1724656138327,0.78584751,63699.0,63698.0,0.000826]
[1724656138531,1.09982351,63699.0,63698.0,0.000826]
[1724656138747,1.10982351,63699.0,63698.0,0.000826]
[1724656139166,1.10482351,63699.0,63698.0,0.000826]
[1724656139563,1.11382351,63699.0,63698.0,0.000826]
[1724656140799,1.26100152,63699.0,63698.0,0.000826]
[1724656141003,2.10767752,63699.0,63698.0,0.000826]
[1724656141254,2.11267752,63699.0,63698.0,0.000826]
[1724656141839,2.10767752,63699.0,63698.0,0.000826]
[1724656142043,2.10267752,63699.0,63698.0,0.000826]
[1724656142240,2.11167752,63699.0,63698.0,0.000826]
[1724656142443,2.12567752,63699.0,63698.0,0.000826]
[1724656142674,2.10267752,63699.0,63698.0,0.000826]
[1724656143137,2.11667752,63699.0,63698.0,0.000826]
[1724656143562,2.43265352,63699.0,63698.0,0.000826]
[1724656144245,2.13067752,63699.0,63698.0,0.000826]
[1724656147614,2.13267752,63699.0,63698.0,0.000826]
[1724656147893,2.13067752,63699.0,63698.0,0.000826]
[1724656148636,2.11667752,63699.0,63698.0,0.000826]
[1724656148958,2.13067752,63699.0,63698.0,0.000826]
[1724656149177,2.11667752,63699.0,63698.0,0.000826]
[1724656149578,2.13067752,63699.0,63698.0,0.000826]
[1724656150186,2.11667752,63699.0,63698.0,0.000826]
[1724656150440,2.10267752,63699.0,63698.0,0.000826]
[1724656150635,2.13067752,63699.0,63698.0,0.000826]
[1724656151036,2.10267752,63699.0,63698.0,0.000826]
[1724656151800,2.11667752,63699.0,63698.0,0.000826]
[1724656152310,2.13067752,63699.0,63698.0,0.000826]
[1724656153519,2.11667752,63699.0,63698.0,0.000826]
[1724656153737,2.10267752,63699.0,63698.0,0.000826]
[1724656153925,2.13067752,63699.0,63698.0,0.000826]
[1724656154324,2.10267752,63699.0,63698.0,0.000826]
[1724656155162,2.11867752,63699.0,63698.0,0.000826]
[1724656155598,2.43265352,63699.0,63698.0,0.000826]
[1724656155850,2.44665352,63699.0,63698.0,0.000826]
[1724656156143,2.43265352,63699.0,63698.0,0.000826]
[1724656156381,2.44665352,63699.0,63698.0,0.000826]
[1724656156584,2.43265352,63699.0,63698.0,0.000826]
[1724656156978,2.44665352,63699.0,63698.0,0.000826]
[1724656158404,2.43265352,63699.0,63698.0,0.000826]
[1724656158760,2.41865352,63699.0,63698.0,0.000826]
[1724656158955,2.10467752,63699.0,63698.0,0.000826]
[1724656159165,2.11867752,63699.0,63698.0,0.000826]
[1724656159502,2.16498936,63699.0,63698.0,0.000826]
[1724656159645,2.43265352,63699.0,63698.0,0.000826]
[1724656159844,2.44665352,63699.0,63698.0,0.000826]
[1724656160127,2.11867752,63699.0,63698.0,0.000826]
[1724656160510,2.18814528,63699.0,63698.0,0.000826]
[1724656160732,2.10467752,63699.0,63698.0,0.000826]
[1724656160948,2.18831029,63699.0,63698.0,0.000826]
[1724656161158,2.50228629,63699.0,63698.0,0.000826]
[1724656161581,2.87374647,63699.0,63698.0,0.000826]
[1724656162211,2.88774647,63699.0,63698.0,0.000826]
[1724656162569,2.79490277,63699.0,63698.0,0.000826]
[1724656162772,1.099245,63680.0,63679.0,0.000826]
[1724656163799,1.099245,63680.0,63679.0,0.183726]
[1724656164022,1.099245,63680.0,63679.0,0.503526]
[1724656165043,0.793175,63680.0,63679.0,0.503526]
[1724656165364,0.793175,63680.0,63679.0,0.320626]
[1724656165498,0.801175,63680.0,63679.0,0.320626]
[1724656165698,0.793175,63680.0,63679.0,0.320626]
[1724656166129,0.801175,63680.0,63679.0,0.320626]
[1724656168263,0.80098605,63680.0,63679.0,0.38159195]
[1724656170040,0.48691605,63680.0,63679.0,0.38159195]
[1724656173325,0.48691605,63680.0,63679.0,0.57289195]
[1724656173696,0.016,63680.0,63679.0,0.72992895]
[1724656173904,0.016,63680.0,63679.0,1.04400395]
[1724656174101,0.016,63680.0,63679.0,1.35807895]
[1724656174522,0.016,63680.0,63679.0,1.85133196]
[1724656174737,0.016,63680.0,63679.0,1.9495774]
[1724656175650,0.016,63680.0,63679.0,1.9445774]
[1724656175786,0.016,63680.0,63679.0,1.9455774]
[1724656175787,0.008,63680.0,63679.0,1.9455774]
[1724656175993,0.46876099,63698.0,63680.0,0.1908]
[1724656176235,0.46876099,63698.0,63682.0,0.1908]
[1724656176464,0.46876099,63698.0,63694.0,0.1908]
[1724656176684,0.156996,63696.0,63694.0,0.1908]
[1724656177356,0.00090751,63699.0,63694.0,0.1908]
[1724656177525,0.156994,63697.0,63694.0,0.1908]
[1724656177726,0.156994,63697.0,63695.0,0.0347807]
[1724656177931,0.156995,63696.0,63695.0,0.0347807]
[1724656178552,0.0069248,63698.0,63690.0,0.1908]
[1724656178553,0.313996,63695.0,63690.0,0.1908]
[1724656178750,0.497381,63698.0,63687.0,0.3521]
[1724656178960,0.314002,63694.0,63687.0,0.3521]
[1724656179258,0.157014,63689.0,63687.0,0.3521]
[1724656179538,0.157009,63691.0,63687.0,0.3521]
[1724656179722,0.157011,63690.0,63687.0,0.3521]
[1724656179926,0.157011,63690.0,63687.0,0.41306595]
[1724656180067,0.157013,63689.0,63687.0,0.41306595]
[1724656180934,0.157003,63693.0,63687.0,0.41406595]
[1724656181129,0.157003,63693.0,63688.0,0.157015]
[1724656181806,0.157003,63693.0,63687.0,0.41406595]
[1724656181807,0.313987,63697.0,63687.0,0.41406595]
[1724656182008,0.157004,63693.0,63688.0,0.0918907]
[1724656182413,0.313987,63697.0,63688.0,0.0918907]
[1724656182414,0.157006,63692.0,63688.0,0.0918907]
[1724656182747,0.314004,63694.0,63688.0,0.0918907]
[1724656182948,0.00090751,63696.0,63689.0,0.3521]
[1724656182949,0.313999,63695.0,63689.0,0.3521]
[1724656183214,0.157003,63693.0,63689.0,0.3521]
[1724656183398,0.159003,63693.0,63690.0,0.06830049]
[1724656183595,0.159003,63693.0,63691.0,0.5429]
[1724656183820,0.00090751,63696.0,63691.0,0.5429]
[1724656183821,0.157005,63692.0,63691.0,0.5429]
[1724656184019,0.471016,63692.0,63691.0,0.5429]
[1724656184368,0.157005,63692.0,63691.0,0.5429]
[1724656184994,0.158005,63692.0,63691.0,0.5429]
[1724656185198,0.001,63692.0,63691.0,0.61972205]
[1724656185567,0.158005,63692.0,63691.0,0.61972205]
[1724656185806,0.001,63692.0,63691.0,0.61972205]
[1724656186405,0.159005,63692.0,63691.0,0.61972205]
[1724656186806,0.002,63692.0,63691.0,0.61972205]
[1724656187245,0.001,63692.0,63691.0,0.61972205]
[1724656188061,0.001,63692.0,63691.0,1.09074605]
[1724656189367,0.001,63692.0,63691.0,0.61972205]
[1724656189774,0.157002,63694.0,63691.0,0.61972205]
[1724656189999,0.157002,63694.0,63692.0,0.08336914]
[1724656191151,0.001,63694.0,63692.0,0.24037414]
[1724656191373,0.001,63694.0,63692.0,0.08336914]
[1724656192628,0.002,63694.0,63691.0,0.5429]
[1724656192829,0.157005,63692.0,63691.0,0.5429]
[1724656192945,0.157011,63690.0,63688.0,0.3519]
[1724656193145,0.157007,63692.0,63688.0,0.3519]
[1724656193344,0.314013,63692.0,63688.0,0.3519]
[1724656193606,0.157008,63691.0,63688.0,0.4225822]
[1724656194679,0.001,63692.0,63688.0,0.4225822]
[1724656194837,0.314002,63694.0,63688.0,0.4225822]
[1724656195044,0.157008,63691.0,63688.0,0.4225822]
[1724656197436,0.15701,63690.0,63688.0,0.4225822]
[1724656197644,0.15701,63690.0,63689.0,0.08950899]
[1724656198069,0.15701,63690.0,63688.0,0.3519]
[1724656199422,0.15701,63690.0,63685.0,0.15702]
[1724656200764,0.00090751,63692.0,63684.0,0.5063]
[1724656200765,0.314016,63691.0,63684.0,0.5063]
[1724656200965,0.157011,63690.0,63685.0,0.157022]
[1724656201181,0.157011,63690.0,63686.0,0.2547571]
[1724656201383,0.00090751,63692.0,63686.0,0.0977381]
[1724656201583,0.157016,63688.0,63686.0,0.0977381]
[1724656201785,0.19002527,63689.0,63680.0,0.3327]
[1724656201992,0.471105,63680.0,63679.0,0.000825]
[1724656202191,0.157031,63682.0,63679.0,0.000825]
[1724656202390,0.157032,63681.0,63680.0,0.10794425]
[1724656202593,0.31404,63686.0,63680.0,0.10794425]
[1724656202942,0.157032,63682.0,63680.0,0.10794425]
[1724656203150,0.157032,63681.0,63680.0,0.10794425]
[1724656204589,0.157029,63683.0,63680.0,0.10794425]
[1724656204783,0.15703,63682.0,63681.0,0.05224694]
[1724656205146,0.314036,63687.0,63681.0,0.05224694]
[1724656205349,0.157024,63685.0,63682.0,0.3367]
[1724656205989,0.314036,63687.0,63682.0,0.3367]
[1724656205990,0.157026,63684.0,63682.0,0.3367]
[1724656206208,0.157021,63686.0,63683.0,0.09607685]
[1724656206407,0.157017,63688.0,63683.0,0.09607685]
[1724656206621,0.314032,63688.0,63683.0,0.09607685]
[1724656206973,0.002,63685.0,63683.0,0.25310385]
[1724656207176,0.002,63685.0,63683.0,0.09607685]
[1724656207377,0.002,63685.0,63684.0,0.06411434]
[1724656207804,0.002,63685.0,63682.0,0.493729]
[1724656208178,0.157018,63687.0,63683.0,0.157027]
[1724656208634,0.001,63685.0,63683.0,0.157027]
[1724656209012,0.005,63688.0,63684.0,0.157024]
[1724656209217,0.157014,63689.0,63685.0,0.157021]
[1724656209376,0.002,63687.0,63685.0,0.2692046]
[1724656209782,0.002,63687.0,63685.0,0.1121836]
[1724656209983,0.505918,63687.0,63685.0,0.1121836]
[1724656210185,0.505918,63687.0,63683.0,0.157027]
[1724656210386,0.1887,63686.0,63681.0,0.471094]
[1724656210791,0.1887,63686.0,63682.0,0.157028]
[1724656210996,0.3489,63687.0,63683.0,0.157027]
[1724656211177,0.157016,63688.0,63684.0,0.157024]
[1724656211307,0.160016,63688.0,63685.0,0.0471084]
[1724656211511,0.160016,63688.0,63679.0,0.3149]
[1724656211512,0.003,63688.0,63682.0,0.314056]
[1724656211719,0.002,63687.0,63682.0,0.314056]
[1724656211914,0.157013,63689.0,63685.0,0.157022]
[1724656212120,0.002,63687.0,63683.0,0.157025]
[1724656212630,0.159016,63688.0,63683.0,0.157025]
[1724656212833,0.159016,63688.0,63684.0,0.0785976]
[1724656213034,0.157018,63687.0,63684.0,0.0785976]
[1724656213268,0.002,63688.0,63684.0,0.2356206]
[1724656213813,0.157015,63688.0,63684.0,0.2356206]
[1724656213954,0.157015,63688.0,63685.0,0.2208]
[1724656214150,0.157015,63688.0,63686.0,0.25654766]
[1724656214717,0.002,63688.0,63686.0,0.25654766]
[1724656214917,0.002,63688.0,63686.0,0.41356666]
[1724656215123,0.15791751,63690.0,63686.0,0.41356666]
[1724656215507,0.001,63688.0,63686.0,0.41356666]
[1724656215854,0.001,63688.0,63687.0,0.08314353]
[1724656215981,0.00090751,63690.0,63687.0,0.24016053]
[1724656216588,0.00090751,63690.0,63689.0,0.157012]
[1724656216929,0.00090751,63690.0,63689.0,0.471037]
[1724656217107,0.00090751,63690.0,63689.0,0.707537]
[1724656217310,0.00090751,63690.0,63689.0,0.78458466]
[1724656217834,0.00090751,63690.0,63689.0,0.96478466]
[1724656218256,0.00090751,63690.0,63689.0,0.65075966]
[1724656218404,0.00090751,63690.0,63689.0,0.96478466]
[1724656219725,0.00090751,63690.0,63689.0,1.12096267]
[1724656219934,0.00090751,63690.0,63689.0,1.45798767]
[1724656220331,0.00090751,63690.0,63689.0,1.45817668]
[1724656221676,0.00090751,63690.0,63689.0,1.14415168]
[1724656223203,0.00090751,63690.0,63689.0,1.45817668]
[1724656224781,0.00190751,63690.0,63689.0,1.45817668]
[1724656224985,0.00090751,63690.0,63689.0,1.45817668]
[1724656225199,0.00190751,63690.0,63689.0,1.45817668]
[1724656225403,0.00290751,63690.0,63689.0,1.45817668]
[1724656225609,0.00190751,63690.0,63689.0,1.45817668]
[1724656225802,0.00090751,63690.0,63689.0,1.45817668]
[1724656225987,0.00190751,63690.0,63689.0,1.45817668]
[1724656227430,0.00190751,63690.0,63689.0,1.46462055]
[1724656228449,0.00290751,63690.0,63689.0,1.46462055]
[1724656228596,0.00290751,63690.0,63689.0,1.45817668]
[1724656229426,0.00190751,63690.0,63689.0,1.45817668]
[1724656229805,0.00290751,63690.0,63689.0,1.45817668]
[1724656231074,0.00190751,63690.0,63689.0,1.77220168]
[1724656231266,0.00190751,63690.0,63689.0,1.45817668]
[1724656231403,0.00290751,63690.0,63689.0,1.77220168]
[1724656231602,0.00290751,63690.0,63689.0,1.77201267]
[1724656231859,0.00290751,63690.0,63689.0,1.77301267]
[1724656232032,0.00190751,63690.0,63689.0,1.77301267]
[1724656232232,0.00090751,63690.0,63689.0,1.77301267]
[1724656232431,0.00290751,63690.0,63689.0,1.77301267]
[1724656233054,0.00190751,63690.0,63689.0,1.77301267]
[1724656234468,0.00290751,63690.0,63689.0,1.77901267]
[1724656235679,0.00290751,63690.0,63689.0,2.09303767]
[1724656235883,0.00290751,63690.0,63689.0,2.19126132]
[1724656236093,0.00290751,63690.0,63689.0,2.30887549]
[1724656236292,0.00090751,63696.0,63695.0,0.201]
[1724656236528,0.00090751,63699.0,63698.0,0.96833313]
[1724656236752,0.00090751,63699.0,63698.0,2.25866208]
[1724656236957,0.00090751,63699.0,63698.0,2.3051728]
[1724656237364,0.00090751,63699.0,63698.0,2.18767779]
[1724656237566,0.4696696,63715.0,63714.0,1.26891713]
[1724656237782,0.4696696,63715.0,63714.0,1.51113867]
[1724656238003,0.00731633,63715.0,63714.0,1.51113867]
[1724656238239,0.00090861,63715.0,63714.0,1.42377654]
[1724656238489,0.00090861,63715.0,63714.0,1.73867854]
[1724656238702,0.00090861,63715.0,63714.0,2.25258054]
[1724656238935,0.4696696,63735.0,63734.0,0.470706]
[1724656239135,0.4696696,63735.0,63734.0,0.72693167]
[1724656239346,0.00605001,63735.0,63734.0,0.72693167]
[1724656239819,0.00090861,63735.0,63734.0,0.72693167]
[1724656241199,0.00090861,63735.0,63734.0,0.72993167]
[1724656241448,0.00090861,63735.0,63734.0,1.04373567]
[1724656241687,0.00090861,63735.0,63734.0,0.72693167]
[1724656241898,0.00090861,63735.0,63734.0,0.76438209]
[1724656242099,0.00090861,63735.0,63734.0,0.76738209]
[1724656242304,0.21630861,63735.0,63734.0,0.10004766]